fUST/lending_fUST_20251010
["ID","MTS","AMOUNT","RATE_DAILY","PERIOD"]
[390477918,1760058643206,-500.0,0.00016712,2]
[390477919,1760058643215,-500.0,0.00016712,2]
[390477920,1760058643224,-500.0,0.00016712,2]
[390477921,1760058643234,-500.0,0.00016712,2]
[390477922,1760058643243,-500.0,0.00016712,2]
[390477923,1760058643252,-500.0,0.00016712,2]
[390477924,1760058643262,-493.08,0.00016712,2]
[390477925,1760058643271,-500.0,0.00016712,2]
[390477926,1760058643281,-500.0,0.00016712,2]
[390477927,1760058643291,-500.0,0.00016712,2]
[390477928,1760058643300,-500.0,0.00016712,2]
[390477929,1760058643309,-500.0,0.00016712,2]
[390477930,1760058643318,-500.0,0.00016712,2]
[390477931,1760058643327,-500.0,0.00016712,2]
[390477932,1760058643336,-500.0,0.00016712,2]
[390477933,1760058643346,-500.0,0.00016712,2]
[390477934,1760058643355,-500.0,0.00016712,2]
[390477935,1760058643364,-500.0,0.00016712,2]
[390477936,1760058643373,-500.0,0.00016712,2]
[390477937,1760058643383,-684.43,0.00016712,2]
[390477938,1760058643392,-3739.76,0.00016712,2]
[390477939,1760058643400,-1231.2,0.00016712,2]
[390477940,1760058643410,-500.0,0.00016712,2]
[390477941,1760058643419,-500.0,0.00016712,2]
[390477942,1760058643428,-500.0,0.00016712,2]
[390477943,1760058643437,-500.0,0.00016712,2]
[390477944,1760058643446,-500.0,0.00016712,2]
[390477945,1760058643455,-500.0,0.00016712,2]
[390477946,1760058643464,-627.64,0.00016712,2]
[390477947,1760058643473,-500.0,0.00016712,2]
[390477948,1760058643482,-624.84,0.00016712,2]
[390477949,1760058643491,-3272.57,0.00016712,2]
[390477950,1760058643502,-500.0,0.00016712,2]
[390477951,1760058643511,-500.0,0.00016712,2]
[390477952,1760058643520,-500.0,0.00016712,2]
[390477953,1760058643529,-500.0,0.00016712,2]
[390477954,1760058643538,-3185.5,0.00016712,2]
[390477955,1760058643548,-1796.42,0.00016712,2]
[390477956,1760058643557,-830.41,0.00016712,2]
[390477957,1760058643566,-500.0,0.00016712,2]
[390477958,1760058643575,-500.0,0.00016712,2]
[390477959,1760058643584,-500.0,0.00016712,2]
[390477960,1760058643593,-500.0,0.00016712,2]
[390477961,1760058643602,-1137.25,0.00016712,2]
[390477962,1760058643611,-500.0,0.00016712,2]
[390477963,1760058643620,-500.0,0.00016712,2]
[390477964,1760058643629,-500.0,0.00016712,2]
[390477965,1760058643638,-500.0,0.00016712,2]
[390477966,1760058643647,-500.0,0.00016712,2]
[390477967,1760058643656,-500.0,0.00016712,2]
[390477968,1760058643665,-500.0,0.00016712,2]
[390477969,1760058643674,-1349.39,0.00016712,2]
[390477970,1760058643683,-500.0,0.00016712,2]
[390477971,1760058643693,-500.0,0.00016712,2]
[390477972,1760058643702,-736.88,0.00016712,2]
[390477973,1760058643711,-500.0,0.00016712,2]
[390477974,1760058643721,-500.0,0.00016712,2]
[390477975,1760058643730,-1086.11,0.00016712,2]
[390477976,1760058643739,-500.0,0.00016712,2]
[390477977,1760058643748,-500.0,0.00016712,2]
[390477978,1760058643757,-500.0,0.00016712,2]
[390477979,1760058643769,-500.0,0.00016712,2]
[390477980,1760058643778,-500.0,0.00016712,2]
[390477981,1760058643788,-500.0,0.00016712,2]
[390477982,1760058643796,-500.0,0.00016712,2]
[390477983,1760058643807,-500.0,0.00016712,2]
[390477984,1760058643816,-500.0,0.00016712,2]
[390477985,1760058643825,-500.0,0.00016712,2]
[390477986,1760058643834,-220.10801267,0.00016712,2]
[390477987,1760058643844,-510.3,0.00016712,2]
[390477988,1760058643853,-500.0,0.00016712,2]
[390477989,1760058643862,-500.0,0.00016712,2]
[390477990,1760058643872,-500.0,0.00016712,2]
[390477991,1760058643881,-500.0,0.00016712,2]
[390477992,1760058643890,-175.04,0.00016712,2]
[390477993,1760058643899,-527.19,0.00016712,2]
[390477994,1760058643908,-500.0,0.00016712,2]
[390477995,1760058643917,-556.67,0.00016712,2]
[390477996,1760058643927,-500.0,0.00016712,2]
[390477997,1760058643936,-500.0,0.00016712,2]
[390477998,1760058643946,-500.0,0.00016712,2]
[390477999,1760058643955,-500.0,0.00016712,2]
[390478000,1760058643964,-500.0,0.00016712,2]
[390478001,1760058643973,-500.0,0.00016712,2]
[390478002,1760058643982,-1323.81,0.00016712,2]
[390478003,1760058643991,-500.0,0.00016712,2]
[390478004,1760058644001,-500.0,0.00016712,2]
[390478005,1760058644010,-500.0,0.00016712,2]
[390478006,1760058644020,-500.0,0.00016712,2]
[390478007,1760058644029,-500.0,0.00016712,2]
[390478008,1760058644038,-500.0,0.00016712,2]
[390478009,1760058644047,-500.0,0.00016712,2]
[390478010,1760058644056,-594.64961081,0.00016712,2]
[390478011,1760058644066,-2160.82,0.00016712,2]
[390478012,1760058644075,-500.0,0.00016712,2]
[390478013,1760058644084,-500.0,0.00016712,2]
[390478014,1760058644093,-500.0,0.00016712,2]
[390478015,1760058644103,-705.15,0.00016712,2]
[390478016,1760058644111,-500.0,0.00016712,2]
[390478018,1760058644121,-151.0,0.00016712,2]
[390478020,1760058644130,-151.0,0.00016712,2]
[390478022,1760058644139,-500.0,0.00016712,2]
[390478024,1760058644148,-500.0,0.00016712,2]
[390478026,1760058644156,-500.0,0.00016712,2]
[390478028,1760058644165,-151.0,0.00016712,2]
[390478030,1760058644174,-151.0,0.00016712,2]
[390478031,1760058644183,-560.0,0.00016712,2]
[390478032,1760058644192,-500.0,0.00016712,2]
[390478033,1760058644201,-572.44,0.00016712,2]
[390478034,1760058644210,-1221.7,0.00016712,2]
[390478035,1760058644218,-151.0,0.00016712,2]
[390478036,1760058644227,-151.0,0.00016712,2]
[390478037,1760058644236,-500.0,0.00016712,2]
[390478038,1760058644245,-500.0,0.00016712,2]
[390478039,1760058644254,-500.0,0.00016712,2]
[390478040,1760058644263,-500.0,0.00016712,2]
[390478041,1760058644271,-500.0,0.00016712,2]
[390478042,1760058644280,-500.0,0.00016712,2]
[390478043,1760058644289,-500.0,0.00016712,2]
[390478044,1760058644298,-500.0,0.00016712,2]
[390478045,1760058644306,-500.0,0.00016712,2]
[390478046,1760058644315,-500.0,0.00016712,2]
[390478047,1760058644324,-151.0,0.00016712,2]
[390478048,1760058644333,-151.0,0.00016712,2]
[390478049,1760058644342,-608.78,0.00016712,2]
[390478050,1760058644350,-500.0,0.00016712,2]
[390478051,1760058644359,-525.75,0.00016712,2]
[390478052,1760058644368,-151.0,0.00016712,2]
[390478053,1760058644377,-1191.61,0.00016712,2]
[390478065,1760058644515,-500.0,0.00016712,2]
[390478068,1760058644543,-500.0,0.00016712,2]
[390478070,1760058644552,-151.0,0.00016712,2]
[390478072,1760058644561,-500.0,0.00016712,2]
[390478074,1760058644570,-151.0,0.00016712,2]
[390478076,1760058644579,-500.0,0.00016712,2]
[390478078,1760058644588,-151.0,0.00016712,2]
[390478080,1760058644597,-151.0,0.00016712,2]
[390478082,1760058644606,-151.0,0.00016712,2]
[390478084,1760058644615,-500.0,0.00016712,2]
[390478086,1760058644624,-151.0,0.00016712,2]
[390478088,1760058644634,-151.0,0.00016712,2]
[390478090,1760058644643,-151.0,0.00016712,2]
[390478091,1760058644651,-500.0,0.00016712,2]
[390478093,1760058644661,-151.0,0.00016712,2]
[390478095,1760058644670,-151.0,0.00016712,2]
[390478097,1760058644679,-500.0,0.00016712,2]
[390478099,1760058644688,-500.0,0.00016712,2]
[390478101,1760058644697,-500.0,0.00016712,2]
[390478104,1760058644707,-500.0,0.00016712,2]
[390478106,1760058644716,-2350.97,0.00016712,2]
[390478108,1760058644725,-500.0,0.00016712,2]
[390478110,1760058644734,-500.0,0.00016712,2]
[390478111,1760058644743,-382.80213303,0.00016712,2]
[390478113,1760058644752,-151.0,0.00016712,2]
[390478115,1760058644764,-1344.99,0.00016712,2]
[390478117,1760058644774,-151.0,0.00016712,2]
[390478119,1760058644783,-500.0,0.00016712,2]
[390478121,1760058644792,-151.0,0.00016712,2]
[390478123,1760058644803,-8539.68,0.00016765,2]
[390478125,1760058644813,-300.0,0.00016766,2]
[390478126,1760058644823,-300.0,0.00016766,2]
[390478127,1760058644832,-300.0,0.00016766,2]
[390478128,1760058644844,-300.0,0.00016766,2]
[390478130,1760058644853,-300.0,0.00016766,2]
[390478132,1760058644863,-300.0,0.00016766,2]
[390478134,1760058644873,-300.0,0.00016766,2]
[390478136,1760058644882,-300.0,0.00016766,2]
[390478138,1760058644892,-300.0,0.00016766,2]
[390478140,1760058644901,-300.0,0.00016766,2]
[390478142,1760058644911,-300.0,0.00016766,2]
[390478144,1760058644920,-300.0,0.00016766,2]
[390478146,1760058644929,-300.0,0.00016766,2]
[390478148,1760058644940,-300.0,0.00016766,2]
[390478150,1760058644949,-300.0,0.00016766,2]
[390478152,1760058644958,-600.0,0.00016766,2]
[390478154,1760058644968,-505.21896128,0.00016773,2]
[390478156,1760058644978,-500.0,0.00016773,2]
[390478158,1760058644989,-500.0,0.00016773,2]
[390478160,1760058645000,-500.0,0.00016773,2]
[390478161,1760058645009,-500.0,0.00016773,2]
[390478163,1760058645018,-500.0,0.00016773,2]
[390478165,1760058645027,-500.0,0.00016773,2]
[390478167,1760058645037,-500.0,0.00016773,2]
[390478168,1760058645047,-500.0,0.00016773,2]
[390478170,1760058645056,-500.0,0.00016773,2]
[390478172,1760058645066,-500.67643969,0.00016773,2]
[390478174,1760058645075,-500.0,0.00016773,2]
[390478176,1760058645085,-500.0,0.00016773,2]
[390478178,1760058645094,-157.28626146,0.00016773,2]
[390478180,1760058645103,-161.84933956,0.00016773,2]
[390478182,1760058645112,-500.0,0.00016773,2]
[390478184,1760058645121,-500.0,0.00016773,2]
[390478186,1760058645129,-500.0,0.00016773,2]
[390478188,1760058645138,-500.0,0.00016773,2]
[390478190,1760058645148,-500.0,0.00016773,2]
[390478192,1760058645157,-500.0,0.00016773,2]
[390478194,1760058645166,-500.0,0.00016773,2]
[390478196,1760058645175,-500.0,0.00016773,2]
[390478198,1760058645184,-500.0,0.00016773,2]
[390478200,1760058645193,-500.0,0.00016773,2]
[390478202,1760058645202,-10000.0,0.00016886,2]
[390478204,1760058645212,-430.71331052,0.00016936,2]
[390478206,1760058645222,-8539.68,0.00016985,2]
[390478208,1760058645231,-8539.68,0.00016985,2]
[390478210,1760058645240,-151.0,0.00016985,2]
[390478212,1760058645249,-151.0,0.00016985,2]
[390478214,1760058645259,-151.0,0.00016985,2]
[390478217,1760058645268,-151.0,0.00016985,2]
[390478219,1760058645278,-151.0,0.00016985,2]
[390478221,1760058645287,-151.0,0.00016985,2]
[390478223,1760058645295,-151.0,0.00016985,2]
[390478225,1760058645305,-151.0,0.00016985,2]
[390478227,1760058645314,-151.0,0.00016986,2]
[390478229,1760058645323,-1519.0,0.00016986,2]
[390478231,1760058645332,-198.0,0.00016986,2]
[390478233,1760058645341,-500.0,0.00016986,2]
[390478235,1760058645350,-500.0,0.00016986,2]
[390478237,1760058645359,-500.0,0.00016986,2]
[390478239,1760058645368,-908.65,0.00016986,2]
[390478241,1760058645378,-539.86,0.00016986,2]
[390478243,1760058645387,-500.0,0.00016986,2]
[390478245,1760058645396,-500.0,0.00016986,2]
[390478247,1760058645405,-554.35,0.00016986,2]
[390478249,1760058645414,-459.792454,0.00016986,2]
[390478251,1760058645423,-500.0,0.00016986,2]
[390478253,1760058645432,-539.196891,0.00016986,2]
[390478255,1760058645441,-254.28537,0.00016986,2]
[390478257,1760058645450,-500.0,0.00016986,2]
[390478259,1760058645459,-1127.32,0.00016986,2]
[390478261,1760058645468,-450.0,0.00016986,2]
[390478263,1760058645477,-836.06,0.00016986,2]
[390478265,1760058645486,-643.27,0.00016986,2]
[390478267,1760058645495,-500.0,0.00016986,2]
[390478269,1760058645504,-644.56,0.00016986,2]
[390478271,1760058645513,-500.0,0.00016986,2]
[390478273,1760058645522,-500.0,0.00016986,2]
[390478275,1760058645530,-500.0,0.00016986,2]
[390478277,1760058645539,-500.0,0.00016986,2]
[390478279,1760058645548,-500.0,0.00016986,2]
[390478280,1760058645557,-490.35,0.00016986,2]
[390478282,1760058645566,-500.0,0.00016986,2]
[390478284,1760058645575,-228.91448979,0.00016986,2]
[390478286,1760058645584,-500.0,0.00016986,2]
[390478289,1760058645593,-727.24,0.00016986,2]
[390478290,1760058645602,-500.0,0.00016986,2]
[390478292,1760058645611,-2335.45,0.00016986,2]
[390478294,1760058645620,-500.0,0.00016986,2]
[390478296,1760058645628,-500.0,0.00016986,2]
[390478298,1760058645638,-617.81,0.00016986,2]
[390478301,1760058645647,-500.0,0.00016986,2]
[390478303,1760058645656,-4506.29,0.00016986,2]
[390478305,1760058645665,-3706.89,0.00016986,2]
[390478306,1760058645674,-500.0,0.00016986,2]
[390478309,1760058645683,-1269.01,0.00016986,2]
[390478311,1760058645693,-500.0,0.00016986,2]
[390478313,1760058645702,-151.560884,0.00016986,2]
[390478315,1760058645711,-500.0,0.00016986,2]
[390478316,1760058645720,-518.99,0.00016986,2]
[390478318,1760058645730,-151.0,0.00016986,2]
[390478320,1760058645739,-500.0,0.00016986,2]
[390478322,1760058645748,-500.0,0.00016986,2]
[390478324,1760058645758,-151.0,0.00016986,2]
[390478326,1760058645770,-151.0,0.00016986,2]
[390478328,1760058645779,-500.0,0.00016986,2]
[390478330,1760058645788,-500.0,0.00016986,2]
[390478332,1760058645798,-500.0,0.00016986,2]
[390478334,1760058645808,-500.0,0.00016986,2]
[390478336,1760058645816,-151.0,0.00016986,2]
[390478338,1760058645825,-161.82,0.00016986,2]
[390478340,1760058645834,-500.0,0.00016986,2]
[390478342,1760058645845,-500.0,0.00016986,2]
[390478344,1760058645854,-151.0,0.00016986,2]
[390478346,1760058645863,-500.0,0.00016986,2]
[390478348,1760058645872,-500.0,0.00016986,2]
[390478350,1760058645881,-500.0,0.00016986,2]
[390478352,1760058645891,-151.0,0.00016986,2]
[390478354,1760058645900,-684.43,0.00016986,2]
[390478356,1760058645909,-3739.76,0.00016986,2]
[390478358,1760058645920,-1231.2,0.00016986,2]
[390478360,1760058645929,-613.55,0.00016986,2]
[390478362,1760058645938,-500.0,0.00016986,2]
[390478363,1760058645947,-322.5145401,0.00016986,2]
[390478364,1760058645956,-603.85,0.00016986,2]
[390478365,1760058645965,-627.64,0.00016986,2]
[390478366,1760058645975,-3272.57,0.00016986,2]
[390478367,1760058645984,-500.0,0.00016986,2]
[390478368,1760058645993,-500.0,0.00016986,2]
[390478369,1760058646004,-3185.5,0.00016986,2]
[390478370,1760058646013,-1796.42,0.00016986,2]
[390478371,1760058646022,-830.41,0.00016986,2]
[390478372,1760058646031,-500.0,0.00016986,2]
[390478373,1760058646041,-500.0,0.00016986,2]
[390478374,1760058646051,-500.0,0.00016986,2]
[390478375,1760058646060,-1137.25,0.00016986,2]
[390478376,1760058646069,-151.0,0.00016986,2]
[390478377,1760058646079,-500.0,0.00016986,2]
[390478378,1760058646088,-151.0,0.00016986,2]
[390478379,1760058646098,-500.0,0.00016986,2]
[390478380,1760058646107,-500.0,0.00016986,2]
[390478381,1760058646116,-151.0,0.00016986,2]
[390478382,1760058646125,-151.0,0.00016986,2]
[390478383,1760058646134,-500.0,0.00016986,2]
[390478384,1760058646143,-1349.39,0.00016986,2]
[390478385,1760058646152,-500.0,0.00016986,2]
[390478386,1760058646162,-500.0,0.00016986,2]
[390478387,1760058646170,-736.88,0.00016986,2]
[390478388,1760058646180,-500.0,0.00016986,2]
[390478389,1760058646189,-151.0,0.00016986,2]
[390478390,1760058646198,-1086.11,0.00016986,2]
[390478391,1760058646207,-500.0,0.00016986,2]
[390478392,1760058646216,-500.0,0.00016986,2]
[390478393,1760058646225,-500.0,0.00016986,2]
[390478394,1760058646234,-151.0,0.00016986,2]
[390478395,1760058646243,-151.0,0.00016986,2]
[390478396,1760058646252,-500.0,0.00016986,2]
[390478397,1760058646262,-500.0,0.00016986,2]
[390478398,1760058646271,-500.0,0.00016986,2]
[390478399,1760058646282,-514.83272724,0.00016986,2]
[390478400,1760058646291,-510.3,0.00016986,2]
[390478401,1760058646301,-500.0,0.00016986,2]
[390478402,1760058646310,-500.0,0.00016986,2]
[390478403,1760058646319,-500.0,0.00016986,2]
[390478404,1760058646329,-500.0,0.00016986,2]
[390478405,1760058646338,-527.19,0.00016986,2]
[390478406,1760058646347,-556.67,0.00016986,2]
[390478407,1760058646356,-500.0,0.00016986,2]
[390478408,1760058646365,-500.0,0.00016986,2]
[390478410,1760058646374,-500.0,0.00016986,2]
[390478411,1760058646384,-500.0,0.00016986,2]
[390478413,1760058646393,-1323.81,0.00016986,2]
[390478414,1760058646402,-500.0,0.00016986,2]
[390478416,1760058646411,-500.0,0.00016986,2]
[390478418,1760058646420,-500.0,0.00016986,2]
[390478420,1760058646429,-500.0,0.00016986,2]
[390478421,1760058646438,-500.0,0.00016986,2]
[390478423,1760058646447,-2160.82,0.00016986,2]
[390478424,1760058646456,-705.15,0.00016986,2]
[390478426,1760058646465,-151.0,0.00016986,2]
[390478428,1760058646474,-151.0,0.00016986,2]
[390478430,1760058646484,-175.478145,0.00016986,2]
[390478431,1760058646493,-151.0,0.00016986,2]
[390478433,1760058646502,-500.0,0.00016986,2]
[390478435,1760058646511,-572.44,0.00016986,2]
[390478436,1760058646520,-1221.7,0.00016986,2]
[390478438,1760058646529,-151.0,0.00016986,2]
[390478440,1760058646538,-176.188392,0.00016986,2]
[390478441,1760058646547,-500.0,0.00016986,2]
[390478443,1760058646555,-500.0,0.00016986,2]
[390478445,1760058646564,-500.0,0.00016986,2]
[390478446,1760058646573,-500.0,0.00016986,2]
[390478448,1760058646583,-500.0,0.00016986,2]
[390478450,1760058646592,-151.0,0.00016986,2]
[390478451,1760058646601,-500.0,0.00016986,2]
[390478453,1760058646610,-1191.61,0.00016986,2]
[390478455,1760058646619,-500.0,0.00016986,2]
[390478456,1760058646627,-151.0,0.00016986,2]
[390478458,1760058646637,-500.0,0.00016986,2]
[390478460,1760058646646,-151.0,0.00016986,2]
[390478461,1760058646655,-500.0,0.00016986,2]
[390478463,1760058646664,-500.0,0.00016986,2]
[390478465,1760058646674,-2350.97,0.00016986,2]
[390478467,1760058646682,-500.0,0.00016986,2]
[390478469,1760058646692,-1344.99,0.00016986,2]
[390478470,1760058646702,-635.05828413,0.00016986,2]
[390478472,1760058646711,-539.196891,0.00017,4]
[390478477,1760058646720,-539.196891,0.00017,4]
[390478479,1760058646775,-539.196891,0.00017,4]
[390478481,1760058646784,-539.196891,0.00017,4]
[390478483,1760058646793,-539.196891,0.00017,4]
[390478484,1760058646803,-254.28537,0.00017,4]
[390478486,1760058646813,-254.28537,0.00017,4]
[390478487,1760058646822,-254.28537,0.00017,4]
[390478489,1760058646831,-254.28537,0.00017,4]
[390478491,1760058646842,-254.28537,0.00017,4]
[390478493,1760058646851,-232.0,0.00017096,3]
[390478495,1760058646861,-1176.45410292,0.0001716,2]
[390478496,1760058646870,-168.01695143,0.00017214,2]
[390478498,1760058646879,-8539.68,0.00017259,2]
[390478500,1760058646887,-8539.68,0.00017259,2]
[390478502,1760058646896,-8539.68,0.00017259,2]
[390478503,1760058646905,-151.0,0.00017259,2]
[390478505,1760058646918,-151.0,0.00017259,2]
[390478507,1760058646928,-151.0,0.00017259,2]
[390478509,1760058646938,-151.0,0.00017259,2]
[390478510,1760058646947,-151.0,0.00017259,2]
[390478512,1760058646956,-151.0,0.00017259,2]
[390478514,1760058646965,-151.0,0.00017259,2]
[390478516,1760058646974,-151.0,0.00017259,2]
[390478517,1760058646982,-151.0,0.0001726,2]
[390478519,1760058646992,-1519.0,0.0001726,2]
[390478521,1760058647001,-500.0,0.0001726,2]
[390478523,1760058647010,-500.0,0.0001726,2]
[390478525,1760058647020,-500.0,0.0001726,2]
[390478527,1760058647032,-500.0,0.0001726,2]
[390478528,1760058647042,-908.65,0.0001726,2]
[390478530,1760058647051,-539.86,0.0001726,2]
[390478532,1760058647059,-500.0,0.0001726,2]
[390478533,1760058647068,-554.35,0.0001726,2]
[390478535,1760058647077,-151.0,0.0001726,2]
[390478537,1760058647086,-151.0,0.0001726,2]
[390478539,1760058647095,-151.0,0.0001726,2]
[390478540,1760058647104,-151.0,0.0001726,2]
[390478542,1760058647113,-540.3248113,0.0001726,2]
[390478544,1760058647121,-186.7766,0.0001726,2]
[390478546,1760058647130,-151.0,0.0001726,2]
[390478547,1760058647139,-151.0,0.0001726,2]
[390478549,1760058647148,-292.201115,0.0001726,2]
[390478551,1760058647157,-500.0,0.0001726,2]
[390478553,1760058647166,-151.0,0.0001726,2]
[390478554,1760058647175,-151.0,0.0001726,2]
[390478556,1760058647183,-151.0,0.0001726,2]
[390478558,1760058647192,-151.000002,0.0001726,2]
[390478560,1760058647201,-151.0,0.0001726,2]
[390478561,1760058647210,-1127.32,0.0001726,2]
[390478563,1760058647219,-151.0,0.0001726,2]
[390478565,1760058647227,-836.06,0.0001726,2]
[390478567,1760058647237,-643.27,0.0001726,2]
[390478568,1760058647245,-213.915667,0.0001726,2]
[390478570,1760058647254,-151.0,0.0001726,2]
[390478572,1760058647263,-500.0,0.0001726,2]
[390478574,1760058647272,-644.56,0.0001726,2]
[390478575,1760058647280,-500.0,0.0001726,2]
[390478577,1760058647289,-151.0,0.0001726,2]
[390478579,1760058647299,-151.0,0.0001726,2]
[390478581,1760058647307,-151.0,0.0001726,2]
[390478583,1760058647316,-500.0,0.0001726,2]
[390478584,1760058647325,-466.51856144,0.0001726,2]
[390478586,1760058647334,-500.0,0.0001726,2]
[390478588,1760058647343,-151.0,0.0001726,2]
[390478590,1760058647352,-500.0,0.0001726,2]
[390478591,1760058647361,-500.0,0.0001726,2]
[390478593,1760058647370,-151.0,0.0001726,2]
[390478595,1760058647379,-151.0,0.0001726,2]
[390478597,1760058647388,-151.0,0.0001726,2]
[390478598,1760058647397,-151.0,0.0001726,2]
[390478600,1760058647407,-151.0,0.0001726,2]
[390478602,1760058647416,-151.0,0.0001726,2]
[390478604,1760058647425,-500.0,0.0001726,2]
[390478606,1760058647434,-727.24,0.0001726,2]
[390478607,1760058647443,-2335.45,0.0001726,2]
[390478609,1760058647452,-617.81,0.0001726,2]
[390478611,1760058647461,-500.0,0.0001726,2]
[390478612,1760058647470,-151.0,0.0001726,2]
[390478614,1760058647479,-4506.29,0.0001726,2]
[390478616,1760058647488,-3706.89,0.0001726,2]
[390478618,1760058647497,-500.0,0.0001726,2]
[390478619,1760058647506,-1269.01,0.0001726,2]
[390478621,1760058647515,-500.0,0.0001726,2]
[390478623,1760058647524,-264.787041,0.0001726,2]
[390478625,1760058647533,-500.0,0.0001726,2]
[390478626,1760058647542,-238.18,0.0001726,2]
[390478628,1760058647551,-500.0,0.0001726,2]
[390478630,1760058647560,-500.0,0.0001726,2]
[390478631,1760058647568,-500.0,0.0001726,2]
[390478633,1760058647577,-500.0,0.0001726,2]
[390478635,1760058647586,-500.0,0.0001726,2]
[390478637,1760058647595,-500.0,0.0001726,2]
[390478638,1760058647604,-684.43,0.0001726,2]
[390478640,1760058647614,-3739.76,0.0001726,2]
[390478642,1760058647623,-1231.2,0.0001726,2]
[390478644,1760058647632,-500.0,0.0001726,2]
[390478645,1760058647640,-627.64,0.0001726,2]
[390478647,1760058647651,-3272.57,0.0001726,2]
[390478649,1760058647660,-500.0,0.0001726,2]
[390478651,1760058647669,-500.0,0.0001726,2]
[390478652,1760058647678,-3185.5,0.0001726,2]
[390478654,1760058647687,-1796.42,0.0001726,2]
[390478656,1760058647696,-830.41,0.0001726,2]
[390478658,1760058647705,-500.0,0.0001726,2]
[390478660,1760058647713,-500.0,0.0001726,2]
[390478661,1760058647722,-500.0,0.0001726,2]
[390478663,1760058647731,-1137.25,0.0001726,2]
[390478665,1760058647740,-500.0,0.0001726,2]
[390478667,1760058647749,-500.0,0.0001726,2]
[390478668,1760058647758,-500.0,0.0001726,2]
[390478670,1760058647771,-151.0,0.0001726,2]
[390478672,1760058647780,-500.0,0.0001726,2]
[390478674,1760058647789,-1349.39,0.0001726,2]
[390478675,1760058647797,-500.0,0.0001726,2]
[390478677,1760058647807,-736.88,0.0001726,2]
[390478679,1760058647817,-1086.11,0.0001726,2]
[390478681,1760058647827,-500.0,0.0001726,2]
[390478683,1760058647841,-151.0,0.0001726,2]
[390478684,1760058647853,-151.0,0.0001726,2]
[390478686,1760058647871,-510.3,0.0001726,2]
[390478688,1760058647881,-500.0,0.0001726,2]
[390478690,1760058647891,-527.19,0.0001726,2]
[390478692,1760058647901,-556.67,0.0001726,2]
[390478693,1760058647910,-500.0,0.0001726,2]
[390478695,1760058647920,-500.0,0.0001726,2]
[390478697,1760058647929,-500.0,0.0001726,2]
[390478699,1760058647943,-1323.81,0.0001726,2]
[390478701,1760058647952,-500.0,0.0001726,2]
[390478702,1760058647961,-500.0,0.0001726,2]
[390478704,1760058647970,-2160.82,0.0001726,2]
[390478706,1760058647979,-705.15,0.0001726,2]
[390478708,1760058647988,-500.0,0.0001726,2]
[390478710,1760058647997,-572.44,0.0001726,2]
[390478712,1760058648010,-1221.7,0.0001726,2]
[390478713,1760058648018,-500.0,0.0001726,2]